fUSD/lending_fUSD_20251228
["ID","MTS","AMOUNT","RATE_DAILY","PERIOD"]
[399951175,1766933438772,-166.66,0.0001613,2]
[399951176,1766933438782,-150.0,0.00016137,2]
[399951177,1766933438792,-150.0,0.00016137,2]
[399951178,1766933438801,-150.0,0.00016137,2]
[399951179,1766933438811,-2011.34847942,0.00016139,2]
[399951180,1766933438820,-12430.77979398,0.00016139,2]
[399951181,1766933438830,-642.94,0.00016149,2]
[399951182,1766933438839,-574.12855637,0.00016149,2]
[399951183,1766933438848,-200.0,0.00016149,2]
[399951184,1766933438857,-207.4,0.00016149,2]
[399951185,1766933438867,-157.57578229,0.00016149,2]
[399951186,1766933438877,-178.62,0.00016178,2]
[399951187,1766933438886,-376.78,0.00016192,2]
[399951188,1766933438896,-159.79298391,0.00016215,2]
[399951189,1766933438906,-405.0,0.00016268,2]
[399951190,1766933438915,-2011.34847942,0.00016329,2]
[399951191,1766933438925,-12430.77979398,0.00016329,2]
[399951192,1766933438935,-584.0,0.00016338,2]
[399951193,1766933438945,-283.0,0.00016354,2]
[399951194,1766933438954,-353.36616313,0.00016374,2]
[399951195,1766933438964,-150.0,0.0001642,2]
[399951196,1766933438974,-150.0,0.0001642,2]
[399951197,1766933438984,-991.29260573,0.00016438,2]
[399951198,1766933438995,-991.29260573,0.00016438,2]
[399951199,1766933439005,-991.29260573,0.00016438,2]
[399951200,1766933439015,-991.29260573,0.00016438,2]
[399951201,1766933439025,-991.29260573,0.00016438,2]
[399951202,1766933439034,-991.29260573,0.00016438,2]
[399951203,1766933439044,-991.29260573,0.00016438,2]
[399951204,1766933439053,-991.29260573,0.00016438,2]
[399951205,1766933439063,-991.29260573,0.00016438,2]
[399951206,1766933439072,-991.29260573,0.00016438,2]
[399951207,1766933439081,-991.29260573,0.00016438,2]
[399951208,1766933439091,-991.29260573,0.00016438,2]
[399951209,1766933439100,-991.29260573,0.00016438,2]
[399951210,1766933439110,-991.29260573,0.00016438,2]
[399951211,1766933439119,-991.29260573,0.00016438,2]
[399951212,1766933439128,-991.29260573,0.00016438,2]
[399951213,1766933439138,-991.29260573,0.00016438,2]
[399951214,1766933439147,-991.29260573,0.00016438,2]
[399951215,1766933439157,-991.29260573,0.00016438,2]
[399951216,1766933439166,-991.29260573,0.00016438,2]
[399951217,1766933439175,-991.29260573,0.00016438,2]
[399951218,1766933439185,-991.29260573,0.00016438,2]
[399951219,1766933439194,-991.29260573,0.00016438,2]
[399951220,1766933439203,-991.29260573,0.00016438,2]
[399951221,1766933439214,-991.29260573,0.00016438,2]
[399951222,1766933439224,-991.29260573,0.00016438,2]
[399951223,1766933439234,-991.29260573,0.00016438,2]
[399951224,1766933439243,-991.29260573,0.00016438,2]
[399951225,1766933439253,-991.29260573,0.00016438,2]
[399951226,1766933439264,-991.29260573,0.00016438,2]
[399951227,1766933439275,-991.29260573,0.00016438,2]
[399951228,1766933439285,-991.29260573,0.00016438,2]
[399951229,1766933439296,-991.29260573,0.00016438,2]
[399951230,1766933439307,-991.29260573,0.00016438,2]
[399951231,1766933439317,-991.29260573,0.00016438,2]
[399951232,1766933439327,-991.29260573,0.00016438,2]
[399951233,1766933439336,-991.29260573,0.00016438,2]
[399951234,1766933439346,-991.29260573,0.00016438,2]
[399951235,1766933439356,-991.29260573,0.00016438,2]
[399951236,1766933439365,-991.29260573,0.00016438,2]
[399951237,1766933439375,-991.29260573,0.00016438,2]
[399951238,1766933439385,-991.29260573,0.00016438,2]
[399951239,1766933439395,-991.29260573,0.00016438,2]
[399951240,1766933439404,-991.29260573,0.00016438,2]
[399951241,1766933439414,-991.29260573,0.00016438,2]
[399951242,1766933439424,-991.29260573,0.00016438,2]
[399951243,1766933439436,-991.29260573,0.00016438,2]
[399951244,1766933439446,-991.29260573,0.00016438,2]
[399951245,1766933439455,-991.29260573,0.00016438,2]
[399951246,1766933439466,-991.29260573,0.00016438,2]
[399951247,1766933439477,-991.29260573,0.00016438,2]
[399951248,1766933439487,-991.29260573,0.00016438,2]
[399951249,1766933439497,-991.29260573,0.00016438,2]
[399951250,1766933439507,-991.29260573,0.00016438,2]
[399951251,1766933439516,-991.29260573,0.00016438,2]
[399951252,1766933439526,-991.29260573,0.00016438,2]
[399951253,1766933439535,-991.29260573,0.00016438,2]
[399951254,1766933439546,-975.80365877,0.00016438,2]
[399951255,1766933439555,-975.80365877,0.00016438,2]
[399951256,1766933439567,-975.80365877,0.00016438,2]
[399951257,1766933439579,-975.80365877,0.00016438,2]
[399951258,1766933439589,-975.80365877,0.00016438,2]
[399951259,1766933439599,-975.80365877,0.00016438,2]
[399951260,1766933439608,-975.80365877,0.00016438,2]
[399951261,1766933439617,-975.80365877,0.00016438,2]
[399951262,1766933439627,-975.80365877,0.00016438,2]
[399951263,1766933439636,-975.80365877,0.00016438,2]
[399951264,1766933439646,-975.80365877,0.00016438,2]
[399951265,1766933439656,-975.80365877,0.00016438,2]
[399951266,1766933439665,-975.80365877,0.00016438,2]
[399951267,1766933439677,-975.80365877,0.00016438,2]
[399951268,1766933439687,-975.80365877,0.00016438,2]
[399951269,1766933439697,-975.80365877,0.00016438,2]
[399951270,1766933439711,-975.80365877,0.00016438,2]
[399951271,1766933439721,-975.80365877,0.00016438,2]
[399951272,1766933439732,-975.80365877,0.00016438,2]
[399951273,1766933439742,-975.80365877,0.00016438,2]
[399951274,1766933439752,-975.80365877,0.00016438,2]
[399951275,1766933439762,-975.80365877,0.00016438,2]
[399951276,1766933439772,-975.80365877,0.00016438,2]
[399951277,1766933439781,-975.80365877,0.00016438,2]
[399951278,1766933439791,-975.80365877,0.00016438,2]
[399951279,1766933439801,-975.80365877,0.00016438,2]
[399951280,1766933439810,-975.80365877,0.00016438,2]
[399951281,1766933440009,-975.80365877,0.00016438,2]
[399951282,1766933440019,-975.80365877,0.00016438,2]
[399951283,1766933440029,-975.80365877,0.00016438,2]
[399951284,1766933440039,-975.80365877,0.00016438,2]
[399951285,1766933440050,-975.80365877,0.00016438,2]
[399951286,1766933440061,-1129.12,0.00016438,2]
[399951287,1766933440071,-7069.93,0.00016438,2]
[399951288,1766933440081,-168.0,0.00016472,2]
[399951289,1766933440091,-420.0,0.00016488,2]
[399951290,1766933440101,-420.0,0.00016488,2]
[399951291,1766933440111,-2011.34847942,0.0001652,2]
[399951292,1766933440121,-11589.15181335,0.0001652,2]
[399951293,1766933440135,-841.62798063,0.0001652,2]
[399951294,1766933440145,-159.79298391,0.00016558,2]
[399951295,1766933440155,-1680.0,0.00016571,2]
[399951296,1766933440165,-2110.3,0.00016628,2]
[399951297,1766933440176,-864.84792037,0.0001666,2]
[399951298,1766933440185,-222.30051953,0.00016667,2]
[399951299,1766933440195,-150.0,0.00016699,2]
[399951300,1766933440206,-150.0,0.00016699,2]
[399951301,1766933440216,-254.80596104,0.00016699,2]
[399951302,1766933440225,-150.0,0.00016703,2]
[399951303,1766933440235,-2011.34847942,0.0001671,2]
[399951304,1766933440245,-12430.77979398,0.0001671,2]
[399951305,1766933440254,-1129.12,0.00016712,2]
[399951306,1766933440264,-150.0,0.00016726,2]
[399951307,1766933440274,-150.0,0.00016726,2]
[399951308,1766933440283,-584.0,0.00016743,2]
[399951309,1766933440293,-166.66,0.00016745,2]
[399951310,1766933440303,-200.0,0.00016754,2]
[399951311,1766933440312,-200.0,0.00016754,2]
[399951312,1766933440322,-178.62,0.00016822,2]
[399951313,1766933440332,-178.62,0.00016822,2]
[399951314,1766933440342,-178.62,0.00016822,2]
[399951315,1766933440351,-178.62,0.00016822,2]
[399951316,1766933440361,-178.62,0.00016822,2]
[399951317,1766933440371,-178.62,0.00016822,2]
[399951318,1766933440381,-178.62,0.00016822,2]
[399951319,1766933440391,-178.62,0.00016822,2]
[399951320,1766933440400,-178.62,0.00016822,2]
[399951321,1766933440410,-178.62,0.00016822,2]
[399951322,1766933440420,-178.62,0.00016822,2]
[399951323,1766933440431,-180.27,0.00016822,2]
[399951324,1766933440440,-200.0,0.00016864,2]
[399951325,1766933440449,-1260.66173846,0.000169,2]
[399951326,1766933440460,-10000.0,0.000169,2]
[399951327,1766933440469,-1745.43336728,0.000169,2]
[399951328,1766933440479,-159.79298391,0.000169,2]
[399951329,1766933440489,-2011.34847942,0.000169,2]
[399951330,1766933440499,-12430.77979398,0.000169,2]
[399951331,1766933440508,-4403.0,0.000169,2]
[399951332,1766933440519,-584.0,0.00016937,2]
[399951333,1766933440528,-500.0,0.00016973,2]
[399951334,1766933440538,-500.0,0.00016973,2]
[399951335,1766933440548,-500.85707724,0.00016973,2]
[399951336,1766933440557,-516.27997317,0.00016973,2]
[399951337,1766933440567,-500.0,0.00016973,2]
[399951338,1766933440576,-501.0445462,0.00016973,2]
[399951339,1766933440586,-341.49799963,0.00016973,2]
[399951340,1766933440596,-500.0,0.00016973,2]
[399951341,1766933440605,-500.0,0.00016973,2]
[399951342,1766933440614,-500.0,0.00016973,2]
[399951343,1766933440624,-500.0,0.00016973,2]
[399951344,1766933440633,-500.0,0.00016973,2]
[399951345,1766933440643,-507.71318398,0.00016973,2]
[399951346,1766933440652,-500.0,0.00016973,2]
[399951347,1766933440662,-1129.12,0.00016986,2]
[399951348,1766933440671,-150.0,0.00016986,2]
[399951349,1766933440680,-150.0,0.00016986,2]
[399951350,1766933440690,-150.0,0.00016986,2]
[399951351,1766933440700,-150.0,0.00016986,2]
[399951352,1766933440713,-150.0,0.00016986,2]
[399951353,1766933440722,-300.0,0.00016999,2]
[399951354,1766933440732,-55587.6551638,0.00017,2]
[399951355,1766933440745,-3517.13058712,0.00017,2]
[399951356,1766933440756,-42351.23818021,0.00017,2]
[399951357,1766933440765,-1679.7618198,0.00017,2]
[399951358,1766933440777,-2256.70555665,0.00017,2]
[399951360,1766933440791,-1706.6350222,0.00017,2]
[399951361,1766933440805,-3557.83562371,0.00017,2]
[399951362,1766933440817,-4141.776292,0.00017,2]
[399951363,1766933440828,-2530.7709,0.00017,2]
[399951364,1766933440840,-439.48628052,0.00017,2]
[399951365,1766933440851,-2416.93348734,0.00017,2]
[399951366,1766933440862,-12477.0,0.00017,2]
[399951367,1766933440872,-10382.20550006,0.00017,2]
[399951368,1766933440901,-1542.26069336,0.00017,2]
[399951369,1766933440912,-88056.17269594,0.00017,2]
[399951370,1766933440934,-838.48,0.00017,2]
[399951371,1766933440946,-540.45162115,0.00017,2]
[399951372,1766933440957,-469.0655875,0.00017,2]
[399951373,1766933440969,-493.53475809,0.00017,2]
[399951374,1766933440980,-45939.90408802,0.00017,2]
[399951375,1766933440992,-6211.97940829,0.00017,2]
[399951376,1766933441003,-375.16859773,0.00017,2]
[399951377,1766933441015,-74898.47935905,0.00017,2]
[399951378,1766933441025,-7796.72161621,0.00017,2]
[399951379,1766933441035,-2485.88554477,0.00017,4]
[399951380,1766933441045,-3054568.25894098,0.00017,2]
[399951389,1766933443907,-178.62,0.00016,2]
[399951390,1766933443918,-8314.97399353,0.00017,2]
[399951391,1766933444967,-146.44949123,0.00017,2]
[399951422,1766933752325,193.0,0.00030137,120]
[399951429,1766933925801,249.8869682,0.00030136,120]
[399951461,1766934508127,191.75461517,0.00030136,120]
[399951462,1766934526255,999.0,0.00013849,3]
[399951463,1766934533505,500.0,0.00030136,120]
[399951464,1766934533727,500.0,0.00030136,120]
[399951465,1766934533957,512.17649256,0.00030136,120]
[399951467,1766934570137,-661.75,0.00013699,2]
[399951468,1766934570159,-300.0,0.000137,2]
[399951469,1766934570178,-300.0,0.00013701,2]
[399951470,1766934570200,-250.0,0.00013703,2]
[399951471,1766934570223,-600.0,0.00013706,2]
[399951472,1766934570244,-300.0,0.00013714,2]
[399951473,1766934570267,-195.0,0.00013714,2]
[399951474,1766934570292,-175.70407613,0.0001373,2]
[399951475,1766934570316,-1621.81890313,0.00013764,2]
[399951476,1766934570339,-195.0,0.00013797,2]
[399951477,1766934570361,-600.0,0.0001383,2]
[399951478,1766934570382,-150.0,0.00013902,2]
[399951479,1766934570403,-20.11977674,0.00013903,2]
[399951491,1766934632170,-300.0,0.00013902,2]
[399951492,1766934632180,-1045.04317917,0.00013902,2]
[399951493,1766934632192,-154.95682083,0.00013902,2]
[399951494,1766934632202,-300.0,0.00013902,2]
[399951495,1766934632211,-300.0,0.00013902,2]
[399951496,1766934632221,-195.0,0.00013902,2]
[399951497,1766934632230,-600.0,0.00013902,2]
[399951498,1766934632239,-2575.32612383,0.00013903,2]
[399951499,1766934632251,-1434.21810536,0.00013903,2]
[399951500,1766934632262,-73253.46146475,0.00013903,2]
[399951501,1766934632272,-609.653476,0.00013903,2]
[399951502,1766934632283,-1498.41572974,0.00013903,2]
[399951503,1766934632299,-4402.16735575,0.00013903,2]
[399951504,1766934632310,-3419.69330534,0.00013903,2]
[399951505,1766934632321,-4573.2,0.00013903,2]
[399951506,1766934632334,-32222.94331177,0.00013903,2]
[399951507,1766934632345,-377.31369087,0.00013903,2]
[399951508,1766934632356,-425.89808998,0.00013903,2]
[399951509,1766934632386,-14034.27471683,0.00013903,2]
[399951514,1766934638254,-771.65510317,0.00013903,2]
[399951515,1766934638318,-48891.40974987,0.00013903,2]
[399951516,1766934638328,-1000.0,0.00013944,2]
[399951517,1766934638339,-551.91,0.00014054,2]
[399951518,1766934638349,-199.76155191,0.00014123,2]
[399951519,1766934638359,-1852.42,0.00014225,2]
[399951520,1766934638369,-1200.0,0.0001464,2]
[399951521,1766934638379,-431.0,0.00014641,2]
[399951522,1766934638389,-197.39193957,0.00014765,2]
[399951523,1766934638398,-152.3880797,0.0001484,2]
[399951524,1766934638408,-197.39193955,0.00014847,2]
[399951525,1766934638417,-196.39277998,0.00014849,2]
[399951526,1766934638426,-500.0,0.00014849,2]
[399951527,1766934638435,-265.89185763,0.00014849,2]
[399951528,1766934638444,-440.34768524,0.00014849,2]
[399951529,1766934638453,-198.00309728,0.00014849,2]
[399951530,1766934638463,-500.0,0.00014849,2]
[399951531,1766934638473,-500.0,0.00014849,2]
[399951532,1766934638482,-500.0,0.00014849,2]
[399951533,1766934638491,-500.0,0.00014849,2]
[399951534,1766934638501,-500.0,0.00014849,2]
[399951535,1766934638511,-500.0,0.00014849,2]
[399951536,1766934638520,-500.0,0.00014849,2]
[399951537,1766934638530,-236.56585209,0.00014849,2]
[399951538,1766934638539,-500.0,0.00014849,2]
[399951539,1766934638549,-75.27644241,0.00014849,2]
[399951540,1766934638561,-346.69440808,0.00014849,2]
[399951541,1766934638570,-91.01502527,0.00014849,2]
[399951544,1766934638589,-408.98497473,0.00014849,2]
[399951546,1766934638598,-500.0,0.00014849,2]
[399951548,1766934638607,-500.0,0.00014849,2]
[399951549,1766934638617,-500.0,0.00014849,2]
[399951550,1766934638626,-500.0,0.00014849,2]
[399951552,1766934638636,-500.0,0.00014849,2]
[399951554,1766934638645,-500.0,0.00014849,2]
[399951556,1766934638654,-197.09984196,0.00014849,2]
[399951558,1766934638666,-302.90015804,0.00014849,2]
[399951560,1766934638678,-500.0,0.00014849,2]
[399951562,1766934638693,-500.0,0.00014849,2]
[399951564,1766934638702,-500.0,0.00014849,2]
[399951566,1766934638712,-500.0,0.00014849,2]
[399951568,1766934638722,-500.0,0.00014849,2]
[399951570,1766934638731,-500.0,0.00014849,2]
[399951572,1766934638741,-500.0,0.00014849,2]
[399951575,1766934638751,-500.0,0.00014849,2]
[399951577,1766934638760,-500.0,0.00014849,2]
[399951580,1766934638770,-500.0,0.00014849,2]
[399951582,1766934638779,-500.0,0.00014849,2]
[399951584,1766934638788,-500.0,0.00014849,2]
[399951586,1766934638797,-306.14457974,0.00014849,2]
[399951588,1766934638809,-193.85542026,0.00014849,2]
[399951590,1766934638819,-500.0,0.00014849,2]
[399951592,1766934638829,-250.0,0.00014849,2]
[399951594,1766934638838,-500.0,0.00014849,2]
[399951596,1766934638848,-336.7499,0.0001485,2]
[399951598,1766934638857,-958.48763987,0.0001485,2]
[399951601,1766934638875,-1134.22,0.0001485,2]
[399951603,1766934638887,-1000.0,0.0001485,2]
[399951606,1766934638903,-642.76071279,0.0001485,2]
[399951753,1766934640369,-539.63574858,0.0001485,2]
[399951773,1766934640558,-1222.21709876,0.0001485,2]
[399951775,1766934640567,-7933.62569245,0.0001485,2]
[399951777,1766934640578,-2245.79013767,0.0001485,2]
[399951779,1766934640590,-989820.58416988,0.0001485,2]
[399951781,1766934640599,-925.9505,0.0001485,2]
[399951783,1766934640609,-236.12,0.0001485,2]
[399951785,1766934640619,-6344.85,0.00014865,2]
[399951787,1766934640628,-10704.71991433,0.00014929,2]
[399951789,1766934640637,-197.39193955,0.00014929,2]
[399951791,1766934640646,-8493.55774972,0.0001494,2]
[399951793,1766934640655,-200.0,0.00014941,2]
[399951795,1766934640663,-500.0,0.00014941,2]
[399951797,1766934640673,-500.0,0.00014941,2]
[399951799,1766934640682,-151.0,0.00014941,2]
[399951801,1766934640691,-500.0,0.00014941,2]
[399951803,1766934640700,-151.0,0.00014941,2]
[399951805,1766934640710,-521.13737359,0.00014941,2]
[399951807,1766934640719,-151.0,0.00014941,2]
[399951809,1766934640728,-151.0,0.00014941,2]
[399951811,1766934640737,-151.0,0.00014941,2]
[399951813,1766934640746,-151.0,0.00014941,2]
[399951815,1766934640755,-151.0,0.00014941,2]
[399951817,1766934640765,-151.0,0.00014941,2]
[399951819,1766934640774,-151.0,0.00014941,2]
[399951821,1766934640783,-200.0,0.00014941,2]
[399951823,1766934640793,-151.0,0.00014941,2]
[399951825,1766934640802,-151.0,0.00014941,2]
[399951827,1766934640810,-151.0,0.00014941,2]
[399951829,1766934640819,-151.0,0.00014941,2]
[399951830,1766934640828,-151.0,0.00014941,2]
[399951832,1766934640837,-500.0,0.00014941,2]
[399951834,1766934640847,-151.0,0.00014941,2]
[399951836,1766934640857,-153.66184867,0.00014941,2]
[399951838,1766934640866,-151.0,0.00014941,2]
[399951840,1766934640875,-151.0,0.00014941,2]
[399951842,1766934640884,-151.0,0.00014941,2]
[399951844,1766934640893,-200.0,0.00014941,2]
[399951846,1766934640903,-151.0,0.00014941,2]
[399951848,1766934640912,-151.0,0.00014941,2]
[399951850,1766934640921,-151.0,0.00014941,2]
[399951852,1766934640932,-151.0,0.00014941,2]
[399951854,1766934640942,-151.0,0.00014941,2]
[399951856,1766934640951,-151.0,0.00014941,2]
[399951858,1766934640960,-151.0,0.00014941,2]
[399951860,1766934640969,-151.0,0.00014941,2]
[399951862,1766934640979,-151.0,0.00014941,2]
[399951864,1766934640988,-500.0,0.00014941,2]
[399951866,1766934640997,-98030.31984018,0.0001495,2]
[399951868,1766934641006,-323.24745058,0.00014973,2]
[399951870,1766934641016,-500.0,0.00014973,2]
[399951872,1766934641025,-500.0,0.00014973,2]
[399951874,1766934641034,-157.13520198,0.00014973,2]
[399951876,1766934641043,-599.98058356,0.00014973,2]
[399951878,1766934641052,-500.32327299,0.00014973,2]
[399951880,1766934641061,-500.14010989,0.00014973,2]
[399951882,1766934641070,-500.0,0.00014973,2]
[399951884,1766934641080,-500.0,0.00014973,2]
[399951886,1766934641089,-500.0,0.00014973,2]
[399951888,1766934641098,-500.51324187,0.00014973,2]
[399951890,1766934641107,-500.0,0.00014973,2]
[399951892,1766934641116,-500.0,0.00014973,2]
[399951894,1766934641129,-500.0,0.00014973,2]
[399951896,1766934641143,-500.0,0.00014973,2]
[399951899,1766934641151,-500.0,0.00014973,2]
[399951900,1766934641160,-500.0,0.00014973,2]
[399951902,1766934641170,-437.57390351,0.00014973,2]
[399951904,1766934641180,-174.92808548,0.00014973,2]
[399951907,1766934641191,-500.0,0.00014973,2]
[399951909,1766934641201,-162.19608931,0.00014973,2]
[399951911,1766934641210,-163.02384966,0.00014973,2]
[399951913,1766934641219,-507.4808143,0.00014973,2]
[399951915,1766934641228,-632.31603684,0.00014973,2]
[399951917,1766934641236,-500.0,0.00014973,2]
[399951919,1766934641245,-255.0,0.00015014,2]
[399951920,1766934641254,-178.39,0.00015019,2]
[399951922,1766934641264,-2500.0,0.00015028,2]
[399951924,1766934641273,-152.24251763,0.00015029,2]
[399951926,1766934641282,-209.57086394,0.00015029,2]
[399951929,1766934641293,-5534.39091375,0.00015029,2]
[399951930,1766934641305,-25555.4614,0.00015029,2]
[399951933,1766934641314,-165.1108,0.00015029,2]
[399951934,1766934641323,-250.0,0.00015068,2]
[399951936,1766934641332,-300.0,0.00015068,2]
[399951938,1766934641342,-195.0,0.00015068,2]
[399951940,1766934641351,-600.0,0.00015068,2]
[399951942,1766934641360,-253.99539142,0.00015068,2]
[399951944,1766934641370,-300.0,0.00015068,2]
[399951946,1766934641380,-300.0,0.00015068,2]
[399951948,1766934641390,-195.0,0.00015068,2]
[399951950,1766934641399,-250.0,0.00015068,2]
[399951952,1766934641408,-300.0,0.00015068,2]
[399951954,1766934641417,-195.0,0.00015068,2]
[399951956,1766934641426,-600.0,0.00015068,2]
[399951958,1766934641435,-300.0,0.00015068,2]
[399951960,1766934641444,-1391.02,0.0001512,2]
[399951962,1766934641453,-1108.21605715,0.00015128,5]
[399951964,1766934641462,-500.0,0.00015128,2]
[399951966,1766934641472,-500.0,0.00015128,2]
[399951968,1766934641481,-500.0,0.00015128,2]
[399951970,1766934641490,-500.0,0.00015128,2]
[399951972,1766934641499,-500.0,0.00015128,2]
[399951973,1766934641508,-500.0,0.00015128,2]
[399951975,1766934641517,-500.0,0.00015128,2]
[399951977,1766934641527,-500.0,0.00015128,2]
[399951979,1766934641536,-500.0,0.00015128,2]
[399951981,1766934641546,-579.81774733,0.00015128,2]
[399951983,1766934641555,-483.08577501,0.00015128,2]
[399951985,1766934641564,-500.0,0.00015128,2]
[399951987,1766934641574,-500.0,0.00015128,2]
[399951989,1766934641584,-500.0,0.00015128,2]
[399951991,1766934641593,-500.0,0.00015128,2]
[399951993,1766934641602,-502.69145487,0.00015128,2]
[399951995,1766934641611,-500.0,0.00015128,2]
[399951997,1766934641620,-500.0,0.00015128,2]
[399951999,1766934641629,-500.0,0.00015128,2]
[399952001,1766934641639,-621.72362606,0.00015128,2]
[399952003,1766934641648,-509.65734169,0.00015128,2]
[399952005,1766934641658,-500.0,0.00015128,2]
[399952007,1766934641667,-500.0,0.00015128,2]
[399952009,1766934641677,-552.54951057,0.00015128,2]
[399952011,1766934641686,-500.0,0.00015128,2]
[399952012,1766934641695,-500.0,0.00015128,2]
[399952013,1766934641703,-500.0,0.00015128,2]
[399952014,1766934641712,-526.32491477,0.00015128,2]
[399952015,1766934641721,-500.0,0.00015128,2]
[399952016,1766934641729,-306.29015372,0.00015128,2]
[399952017,1766934641738,-500.0,0.00015128,2]
[399952018,1766934641747,-500.0,0.00015128,2]
[399952019,1766934641756,-500.0,0.00015128,2]
[399952020,1766934641765,-500.0,0.00015128,2]
[399952021,1766934641775,-500.0,0.00015128,2]
[399952022,1766934641784,-500.0,0.00015128,2]
[399952023,1766934641794,-500.0,0.00015128,2]
[399952024,1766934641802,-500.0,0.00015128,2]
[399952025,1766934641811,-562.55426662,0.00015128,2]
[399952026,1766934641820,-500.0,0.00015128,2]
[399952027,1766934641830,-649.44280484,0.00015128,2]
[399952028,1766934641841,-500.0,0.00015128,2]
[399952029,1766934641850,-500.0,0.00015128,2]
[399952030,1766934641859,-500.0,0.00015128,2]
[399952031,1766934641868,-500.0,0.00015128,2]
[399952032,1766934641879,-505.80761707,0.00015128,2]
[399952033,1766934641888,-1000.0,0.00015129,2]
[399952034,1766934641897,-10704.71991431,0.00015148,2]
[399952035,1766934641906,-500.0,0.00015215,2]
[399952037,1766934641915,-500.0,0.00015228,2]
[399952039,1766934641924,-500.0,0.00015228,2]
[399952041,1766934641934,-500.0,0.00015228,2]
[399952043,1766934641943,-500.0,0.00015229,2]
[399952045,1766934641953,-500.0,0.00015229,2]
[399952047,1766934641962,-500.0,0.00015229,2]
[399952049,1766934641971,-500.0,0.00015229,2]
[399952051,1766934641981,-500.0,0.00015229,2]
[399952053,1766934641990,-500.0,0.00015229,2]
[399952055,1766934642000,-500.0,0.00015229,2]
[399952057,1766934642009,-500.0,0.00015229,2]
[399952059,1766934642018,-500.0,0.00015229,2]
[399952061,1766934642027,-500.0,0.00015229,2]
[399952063,1766934642036,-500.0,0.00015229,2]
[399952065,1766934642045,-420.0,0.00015232,2]
[399952067,1766934642055,-420.0,0.00015232,2]
[399952069,1766934642064,-5534.39091375,0.00015237,2]
[399952071,1766934642073,-150.0,0.00015288,2]
[399952073,1766934642082,-150.0,0.00015288,2]
[399952075,1766934642091,-150.0,0.00015288,2]
[399952077,1766934642101,-150.0,0.00015288,2]
[399952079,1766934642110,-150.0,0.00015288,2]
[399952081,1766934642119,-150.0,0.00015288,2]
[399952083,1766934642128,-150.0,0.00015288,2]
[399952085,1766934642138,-150.0,0.00015288,2]
[399952087,1766934642147,-150.0,0.00015288,2]
[399952089,1766934642156,-150.0,0.00015288,2]
[399952091,1766934642167,-150.0,0.00015288,2]
[399952093,1766934642177,-1680.0,0.00015292,2]
[399952095,1766934642186,-354.59337408,0.00015292,2]
[399952097,1766934642195,-300.0,0.00015292,2]
[399952099,1766934642205,-195.0,0.00015292,2]
[399952101,1766934642214,-600.0,0.00015292,2]
[399952103,1766934642223,-209.5708639,0.00015296,2]
[399952105,1766934642232,-10704.71991431,0.00015367,2]
[399952107,1766934642240,-1391.02,0.00015394,2]
[399952109,1766934642250,-5534.39091375,0.00015445,2]
[399952111,1766934642259,-150.0,0.00015476,2]
[399952113,1766934642268,-200.0,0.00015489,2]
[399952115,1766934642277,-500.0,0.00015489,2]
[399952117,1766934642287,-500.0,0.00015489,2]
[399952119,1766934642299,-1000.0,0.00015521,2]
[399952121,1766934642308,-1000.0,0.00015521,2]
[399952123,1766934642317,-1000.0,0.00015521,2]
[399952125,1766934642326,-439.3417286,0.00015521,2]
[399952126,1766934642335,-1000.0,0.00015521,2]
[399952129,1766934642347,-169.53966379,0.00015521,2]
[399952130,1766934642356,-574.4149174,0.00015521,2]